[Event "MČR družstev mladších žáků 2024"]
[Site "Harrachov, Czech Republic"]
[Date "2024.06.14"]
[Round "1.19"]
[White "Velim Vojtech"]
[Black "Skoloud Josef"]
[Result "1/2-1/2"]
[TimeControl "25+10"]
[WhiteFideId "23749407"]
[BlackFideId "23744111"]
[WhiteElo "1814"]
[BlackElo "1340"]

1. d4 {[%clk 00:25:15]} {[%emt 00:00:05]} d5 {[%clk 00:25:19]} {[%emt
00:00:02]} 2. c4 {[%clk 00:25:24]} {[%emt 00:00:02]} e6 {[%clk 00:25:25]}
{[%emt 00:00:04]} 3. Nc3 {[%clk 00:25:33]} {[%emt 00:00:01]} Nf6 {[%clk
00:25:29]} {[%emt 00:00:05]} 4. Bg5 {[%clk 00:25:41]} {[%emt 00:00:02]} Be7
{[%clk 00:24:57]} {[%emt 00:00:41]} 5. e3 {[%clk 00:25:36]} {[%emt 00:00:15]}
O-O {[%clk 00:25:01]} {[%emt 00:00:07]} 6. Nf3 {[%clk 00:25:41]} {[%emt
00:00:04]} c5 {[%clk 00:24:43]} {[%emt 00:00:29]} 7. cxd5 {[%clk 00:25:35]}
{[%emt 00:00:15]} exd5 {[%clk 00:24:36]} {[%emt 00:00:18]} 8. Bd3 {[%clk
00:25:31]} {[%emt 00:00:14]} Nc6 {[%clk 00:23:57]} {[%emt 00:00:48]} 9. dxc5
{[%clk 00:24:46]} {[%emt 00:00:55]} Be6 {[%clk 00:23:24]} {[%emt 00:00:43]} 10.
O-O {[%clk 00:24:24]} {[%emt 00:00:33]} Bxc5 {[%clk 00:21:29]} {[%emt
00:02:04]} 11. Rc1 {[%clk 00:24:22]} {[%emt 00:00:12]} Be7 {[%clk 00:17:24]}
{[%emt 00:04:16]} 12. Bb1 {[%clk 00:23:21]} {[%emt 00:01:10]} Ng4 {[%clk
00:12:39]} {[%emt 00:04:55]} 13. Bxe7 {[%clk 00:19:27]} {[%emt 00:04:05]} Nxe7
{[%clk 00:12:41]} {[%emt 00:00:08]} 14. Nd4 {[%clk 00:11:32]} {[%emt 00:08:05]}
Qd6 {[%clk 00:09:36]} {[%emt 00:03:15]} 15. g3 {[%clk 00:10:15]} {[%emt
00:01:26]} Bd7 {[%clk 00:08:30]} {[%emt 00:01:15]} 16. Qd3 {[%clk 00:08:59]}
{[%emt 00:01:27]} Qh6 {[%clk 00:08:01]} {[%emt 00:00:40]} 17. Nf3 {[%clk
00:04:13]} {[%emt 00:04:56]} Bc6 {[%clk 00:05:49]} {[%emt 00:02:22]} 18. Ne2
{[%clk 00:02:50]} {[%emt 00:01:33]} Ng6 {[%clk 00:03:42]} {[%emt 00:02:16]} 19.
Ned4 {[%clk 00:01:02]} {[%emt 00:01:58]} N6e5 {[%clk 00:02:46]} {[%emt
00:01:07]} 20. Qe2 {[%clk 00:00:30]} {[%emt 00:00:42]} Qh3 {[%clk 00:01:54]}
{[%emt 00:01:01]} 21. Rxc6 {[%clk 00:00:25]} {[%emt 00:00:15]} bxc6 {[%clk
00:01:48]} {[%emt 00:00:16]} 22. Bf5 {[%clk 00:00:25]} {[%emt 00:00:10]} Nxf3+
{[%clk 00:01:38]} {[%emt 00:00:20]} 23. Nxf3 {[%clk 00:00:32]} {[%emt
00:00:02]} Qh5 {[%clk 00:01:46]} {[%emt 00:00:02]} 24. Bxg4 {[%clk 00:00:40]}
{[%emt 00:00:03]} Qxg4 {[%clk 00:01:53]} {[%emt 00:00:02]} 25. Kg2 {[%clk
00:00:48]} {[%emt 00:00:02]} Qe4 {[%clk 00:01:53]} {[%emt 00:00:11]} 26. Rd1
{[%clk 00:00:56]} {[%emt 00:00:02]} c5 {[%clk 00:01:41]} {[%emt 00:00:22]} 27.
b3 {[%clk 00:00:55]} {[%emt 00:00:11]} d4 {[%clk 00:01:12]} {[%emt 00:00:40]}
28. Qc4 {[%clk 00:01:04]} {[%emt 00:00:01]} g5 {[%clk 00:01:01]} {[%emt
00:00:20]} 29. Qd3 {[%clk 00:00:42]} {[%emt 00:00:32]} Qxd3 {[%clk 00:00:59]}
{[%emt 00:00:12]} 30. Rxd3 {[%clk 00:00:50]} {[%emt 00:00:02]} dxe3 {[%clk
00:01:03]} {[%emt 00:00:05]} 31. Rxe3 {[%clk 00:00:59]} {[%emt 00:00:02]} h6
{[%clk 00:01:07]} {[%emt 00:00:06]} 32. Rc3 {[%clk 00:01:03]} {[%emt 00:00:06]}
Rac8 {[%clk 00:00:54]} {[%emt 00:00:22]} 33. Rc4 {[%clk 00:01:11]} {[%emt
00:00:03]} f6 {[%clk 00:00:56]} {[%emt 00:00:07]} 34. Ra4 {[%clk 00:01:17]}
{[%emt 00:00:04]} Rc7 {[%clk 00:01:00]} {[%emt 00:00:07]} 35. Nd2 {[%clk
00:01:21]} {[%emt 00:00:06]} Rd8 {[%clk 00:00:57]} {[%emt 00:00:13]} 36. Nc4
{[%clk 00:01:27]} {[%emt 00:00:05]} Rd4 {[%clk 00:00:59]} {[%emt 00:00:07]} 37.
Ra6 {[%clk 00:01:33]} {[%emt 00:00:04]} Kg7 {[%clk 00:00:49]} {[%emt 00:00:21]}
38. Nd6 {[%clk 00:01:29]} {[%emt 00:00:13]} Kg6 {[%clk 00:00:46]} {[%emt
00:00:12]} 39. Ne8 {[%clk 00:00:52]} {[%emt 00:00:48]} Rf7 {[%clk 00:00:55]}
{[%emt 00:00:01]} 40. Nd6 {[%clk 00:01:01]} Rf8 {[%clk 00:00:50]} {[%emt
00:00:15]} 41. Nc4 {[%clk 00:01:03]} {[%emt 00:00:09]} Ra8 {[%clk 00:00:38]}
{[%emt 00:00:21]} 42. Ra5 {[%clk 00:00:50]} {[%emt 00:00:22]} Rd5 {[%clk
00:00:39]} {[%emt 00:00:10]} 43. Nb6 {[%clk 00:00:56]} {[%emt 00:00:05]} axb6
{[%clk 00:00:38]} {[%emt 00:00:11]} 44. Rxa8 {[%clk 00:01:05]} {[%emt
00:00:01]} Rd6 {[%clk 00:00:39]} {[%emt 00:00:08]} 45. Ra6 {[%clk 00:01:07]}
{[%emt 00:00:08]} Rc6 {[%clk 00:00:35]} {[%emt 00:00:14]} 46. a4 {[%clk
00:01:03]} {[%emt 00:00:14]} c4 {[%clk 00:00:37]} {[%emt 00:00:08]} 47. bxc4
{[%clk 00:01:07]} {[%emt 00:00:06]} Rxc4 {[%clk 00:00:46]} {[%emt 00:00:02]} 48.
a5 {[%clk 00:00:55]} {[%emt 00:00:21]} bxa5 {[%clk 00:00:52]} {[%emt 00:00:04]}
49. Rxa5 {[%clk 00:01:04]} {[%emt 00:00:01]} h5 {[%clk 00:00:54]} {[%emt
00:00:07]} 50. Ra8 {[%clk 00:01:08]} {[%emt 00:00:06]} h4 {[%clk 00:01:00]}
{[%emt 00:00:05]} 51. Rh8 {[%clk 00:01:08]} {[%emt 00:00:10]} hxg3 {[%clk
00:01:07]} {[%emt 00:00:02]} 52. hxg3 {[%clk 00:01:16]} {[%emt 00:00:03]} Kf5
{[%clk 00:01:16]} {[%emt 00:00:01]} 53. Rh6 {[%clk 00:01:20]} {[%emt 00:00:06]}
Rd4 {[%clk 00:01:07]} {[%emt 00:00:18]} 54. Rh8 {[%clk 00:01:17]} {[%emt
00:00:14]} Rc4 {[%clk 00:01:06]} {[%emt 00:00:11]} 55. Ra8 {[%clk 00:01:24]}
{[%emt 00:00:03]} Rc5 {[%clk 00:01:13]} {[%emt 00:00:03]} 56. Ra4 {[%clk
00:01:27]} {[%emt 00:00:07]} Re5 {[%clk 00:01:09]} {[%emt 00:00:13]} 57. Ra6
{[%clk 00:01:29]} {[%emt 00:00:09]} Re6 {[%clk 00:01:07]} {[%emt 00:00:12]} 58.
Ra4 {[%clk 00:01:03]} {[%emt 00:00:35]} Re5 {[%clk 00:01:15]} {[%emt 00:00:03]}
59. Kf3 {[%clk 00:01:08]} {[%emt 00:00:06]} Kg6 {[%clk 00:01:13]} {[%emt
00:00:10]} 60. Ra6 {[%clk 00:00:58]} {[%emt 00:00:21]} Rf5+ {[%clk 00:01:19]}
{[%emt 00:00:05]} 61. Kg2 {[%clk 00:01:00]} {[%emt 00:00:08]} Re5 {[%clk
00:01:15]} {[%emt 00:00:14]} 62. f4 {[%clk 00:00:52]} {[%emt 00:00:18]} gxf4
{[%clk 00:01:13]} {[%emt 00:00:11]} 63. gxf4 {[%clk 00:01:00]} {[%emt
00:00:01]} Rb5 {[%clk 00:01:19]} {[%emt 00:00:05]} 64. Kf3 {[%clk 00:01:03]}
{[%emt 00:00:07]} Kf5 {[%clk 00:01:24]} {[%emt 00:00:04]} 65. Ra3 {[%clk
00:01:05]} {[%emt 00:00:09]} Rc5 {[%clk 00:01:31]} {[%emt 00:00:03]} 66. Rb3
{[%clk 00:01:06]} {[%emt 00:00:09]} Ra5 {[%clk 00:01:37]} {[%emt 00:00:04]} 67.
Rc3 {[%clk 00:01:14]} {[%emt 00:00:02]} Rb5 {[%clk 00:01:44]} {[%emt 00:00:03]}
68. Ra3 {[%clk 00:01:22]} {[%emt 00:00:02]} 1/2-1/2



[ePGN "0.1;DGT LiveChess/2.2.6"]

[Event "MČR družstev mladších žáků 2024"]
[Site "Harrachov, Czech Republic"]
[Date "2024.06.14"]
[Round "1.2"]
[White "Walder Hugo"]
[Black "Havlik David"]
[Result "1-0"]
[TimeControl "25+10"]
[WhiteFideId "23743360"]
[BlackFideId "23751525"]
[WhiteElo "1489"]
[BlackElo "1348"]

1. e4 {[%clk 00:25:18]} {[%emt 00:00:02]} c5 {[%clk 00:25:18]} {[%emt
00:00:02]} 2. Nf3 {[%clk 00:25:27]} e6 {[%clk 00:25:27]} {[%emt 00:00:02]} 3.
d4 {[%clk 00:25:36]} {[%emt 00:00:01]} cxd4 {[%clk 00:25:36]} {[%emt 00:00:01]}
4. Nxd4 {[%clk 00:25:45]} Nf6 {[%clk 00:25:45]} {[%emt 00:00:01]} 5. Nc3 {[%clk
00:25:42]} {[%emt 00:00:13]} Nc6 {[%clk 00:25:53]} {[%emt 00:00:02]} 6. Be3
{[%clk 00:25:40]} {[%emt 00:00:12]} Bb4 {[%clk 00:26:00]} {[%emt 00:00:03]} 7.
Bd3 {[%clk 00:24:38]} {[%emt 00:01:12]} d5 {[%clk 00:26:02]} {[%emt 00:00:08]}
8. exd5 {[%clk 00:23:40]} {[%emt 00:01:08]} Nxd5 {[%clk 00:26:02]} {[%emt
00:00:10]} 9. Nde2 {[%clk 00:22:42]} {[%emt 00:01:08]} Nxe3 {[%clk 00:22:27]}
{[%emt 00:03:45]} 10. fxe3 {[%clk 00:22:51]} {[%emt 00:00:01]} Qg5 {[%clk
00:20:35]} {[%emt 00:02:02]} 11. Nf4 {[%clk 00:20:50]} {[%emt 00:02:12]} e5
{[%clk 00:20:11]} {[%emt 00:00:33]} 12. Qh5 {[%clk 00:20:30]} {[%emt 00:00:30]}
Qe7 {[%clk 00:17:42]} {[%emt 00:02:37]} 13. Nfd5 {[%clk 00:17:31]} {[%emt
00:03:10]} Qd6 {[%clk 00:16:54]} {[%emt 00:00:56]} 14. Nxb4 {[%clk 00:16:51]}
{[%emt 00:00:52]} Nxb4 {[%clk 00:16:28]} {[%emt 00:00:36]} 15. Rd1 {[%clk
00:16:18]} {[%emt 00:00:39]} Nxd3+ {[%clk 00:15:09]} {[%emt 00:01:34]} 16. Rxd3
{[%clk 00:16:20]} {[%emt 00:00:08]} Qc5 {[%clk 00:13:03]} {[%emt 00:02:00]} 17.
O-O {[%clk 00:12:22]} {[%emt 00:04:25]} g6 {[%clk 00:10:26]} {[%emt 00:02:47]}
18. Qh4 {[%clk 00:11:01]} {[%emt 00:01:30]} Bf5 {[%clk 00:09:52]} {[%emt
00:00:42]} 19. Ne4 {[%clk 00:06:33]} {[%emt 00:04:40]} Bxe4 {[%clk 00:04:00]}
{[%emt 00:06:02]} 20. Qxe4 {[%clk 00:06:39]} {[%emt 00:00:03]} O-O {[%clk
00:03:17]} {[%emt 00:00:53]} 21. Rc3 {[%clk 00:06:03]} {[%emt 00:00:44]} Qe7
{[%clk 00:03:08]} {[%emt 00:00:21]} 22. Qc4 {[%clk 00:03:22]} {[%emt 00:02:52]}
Rad8 {[%clk 00:01:45]} {[%emt 00:01:33]} 23. Qc5 {[%clk 00:02:12]} {[%emt
00:01:20]} Qxc5 {[%clk 00:00:53]} {[%emt 00:01:02]} 24. Rxc5 {[%clk 00:02:21]}
{[%emt 00:00:01]} Rd2 {[%clk 00:00:59]} {[%emt 00:00:04]} 25. Re1 {[%clk
00:01:26]} {[%emt 00:01:05]} Rfd8 {[%clk 00:00:56]} {[%emt 00:00:13]} 26. Kf1
{[%clk 00:01:26]} {[%emt 00:00:10]} Kf8 {[%clk 00:00:41]} {[%emt 00:00:25]} 27.
Re2 {[%clk 00:01:18]} {[%emt 00:00:18]} Rd1+ {[%clk 00:00:21]} {[%emt
00:00:30]} 28. Kf2 {[%clk 00:01:28]} {[%emt 00:00:01]} e4 {[%clk 00:00:21]}
{[%emt 00:00:11]} 29. Rc7 {[%clk 00:01:29]} {[%emt 00:00:07]} R1d7 {[%clk
00:00:29]} {[%emt 00:00:02]} 30. Rxd7 {[%clk 00:01:24]} {[%emt 00:00:15]} Rxd7
{[%clk 00:00:38]} 31. Ke1 {[%clk 00:01:32]} {[%emt 00:00:02]} Ke7 {[%clk
00:00:31]} {[%emt 00:00:18]} 32. Rd2 {[%clk 00:01:40]} {[%emt 00:00:02]} Rc7
{[%clk 00:00:37]} {[%emt 00:00:04]} 33. c3 {[%clk 00:01:47]} {[%emt 00:00:03]}
Rc5 {[%clk 00:00:39]} {[%emt 00:00:07]} 34. Rd4 {[%clk 00:01:49]} {[%emt
00:00:09]} f5 {[%clk 00:00:42]} {[%emt 00:00:07]} 35. Kd2 {[%clk 00:01:12]}
{[%emt 00:00:47]} Ra5 {[%clk 00:00:40]} {[%emt 00:00:11]} 36. a3 {[%clk
00:01:21]} {[%emt 00:00:02]} Rb5 {[%clk 00:00:40]} {[%emt 00:00:10]} 37. Kc2
{[%clk 00:01:30]} {[%emt 00:00:01]} Ke6 {[%clk 00:00:40]} {[%emt 00:00:10]} 38.
c4 {[%clk 00:00:48]} {[%emt 00:00:51]} Rb6 {[%clk 00:00:48]} {[%emt 00:00:01]}
39. b4 {[%clk 00:00:51]} {[%emt 00:00:07]} Rd6 {[%clk 00:00:50]} {[%emt
00:00:09]} 40. Kc3 {[%clk 00:00:55]} {[%emt 00:00:06]} Ra6 {[%clk 00:00:33]}
{[%emt 00:00:26]} 41. Kb3 {[%clk 00:01:00]} {[%emt 00:00:05]} Rc6 {[%clk
00:00:28]} {[%emt 00:00:16]} 42. a4 {[%clk 00:00:52]} {[%emt 00:00:19]} b6
{[%clk 00:00:28]} {[%emt 00:00:10]} 43. b5 {[%clk 00:00:51]} {[%emt 00:00:11]}
Rc7 {[%clk 00:00:20]} {[%emt 00:00:18]} 44. Kb4 {[%clk 00:00:57]} {[%emt
00:00:03]} Rc5 {[%clk 00:00:18]} {[%emt 00:00:12]} 45. a5 {[%clk 00:00:58]}
{[%emt 00:00:10]} g5 {[%clk 00:00:19]} {[%emt 00:00:09]} 46. g3 {[%clk
00:01:07]} {[%emt 00:00:01]} h5 {[%clk 00:00:25]} {[%emt 00:00:04]} 47. Rd8
{[%clk 00:00:45]} {[%emt 00:00:31]} Rc7 {[%clk 00:00:22]} {[%emt 00:00:13]} 48.
axb6 {[%clk 00:00:54]} {[%emt 00:00:03]} axb6 {[%clk 00:00:31]} {[%emt
00:00:01]} 49. Rb8 {[%clk 00:01:00]} {[%emt 00:00:04]} Ke5 {[%clk 00:00:28]}
{[%emt 00:00:13]} 50. Rxb6 {[%clk 00:01:06]} {[%emt 00:00:03]} f4 {[%clk
00:00:32]} {[%emt 00:00:06]} 51. gxf4+ {[%clk 00:00:59]} {[%emt 00:00:18]} gxf4
{[%clk 00:00:41]} {[%emt 00:00:01]} 52. exf4+ {[%clk 00:01:06]} {[%emt
00:00:02]} Kxf4 {[%clk 00:00:50]} {[%emt 00:00:01]} 53. Rc6 {[%clk 00:01:12]}
{[%emt 00:00:04]} Rd7 {[%clk 00:00:42]} {[%emt 00:00:18]} 54. b6 {[%clk
00:01:21]} {[%emt 00:00:01]} e3 {[%clk 00:00:22]} {[%emt 00:00:31]} 55. Re6
{[%clk 00:01:23]} {[%emt 00:00:08]} Rb7 {[%clk 00:00:20]} {[%emt 00:00:11]} 56.
Kb5 {[%clk 00:01:27]} {[%emt 00:00:07]} Kf3 {[%clk 00:00:21]} {[%emt 00:00:09]}
57. c5 {[%clk 00:01:36]} e2 {[%clk 00:00:23]} {[%emt 00:00:08]} 58. c6 {[%clk
00:01:44]} Rf7 {[%clk 00:00:22]} {[%emt 00:00:11]} 59. b7 {[%clk 00:01:48]}
{[%emt 00:00:06]} Rf5+ {[%clk 00:00:29]} {[%emt 00:00:04]} 60. Kb6 {[%clk
00:01:56]} {[%emt 00:00:02]} Rf4 {[%clk 00:00:36]} {[%emt 00:00:02]} 61. b8=Q
{[%clk 00:02:00]} {[%emt 00:00:06]} Rb4+ {[%clk 00:00:44]} {[%emt 00:00:03]} 62.
Kc7 {[%clk 00:02:09]} Rxb8 {[%clk 00:00:38]} {[%emt 00:00:16]} 63. Kxb8 {[%clk
00:02:18]} {[%emt 00:00:01]} Kf2 {[%clk 00:00:46]} {[%emt 00:00:02]} 64. Rxe2+
{[%clk 00:02:27]} {[%emt 00:00:01]} Kxe2 {[%clk 00:00:54]} 65. c7 {[%clk
00:02:36]} Kf2 {[%clk 00:01:03]} {[%emt 00:00:02]} 66. c8=Q {[%clk 00:02:42]}
{[%emt 00:00:03]} Kg2 {[%clk 00:01:12]} {[%emt 00:00:02]} 67. Qc7 {[%clk
00:02:49]} {[%emt 00:00:04]} h4 {[%clk 00:01:20]} {[%emt 00:00:02]} 68. Qf4
{[%clk 00:02:56]} {[%emt 00:00:02]} h3 {[%clk 00:01:28]} {[%emt 00:00:03]} 69.
Qg3+ {[%clk 00:03:05]} Kh1 {[%clk 00:01:34]} {[%emt 00:00:04]} 70. Qf4 {[%clk
00:03:04]} {[%emt 00:00:09]} Kg1 {[%clk 00:01:39]} {[%emt 00:00:07]} 71. Qg3+
{[%clk 00:03:08]} {[%emt 00:00:06]} Kh1 {[%clk 00:01:43]} {[%emt 00:00:06]} 72.
Qxh3 {[%clk 00:03:16]} {[%emt 00:00:02]} Kg1 {[%clk 00:01:51]} {[%emt
00:00:02]} 73. Qg3+ {[%clk 00:03:25]} Kh1 {[%clk 00:02:00]} {[%emt 00:00:01]}
74. Qd6 {[%clk 00:03:28]} {[%emt 00:00:04]} Kg2 {[%clk 00:02:08]} {[%emt
00:00:05]} 75. Kc7 {[%clk 00:03:37]} Kg1 {[%clk 00:02:17]} {[%emt 00:00:01]} 76.
h3 {[%clk 00:03:44]} {[%emt 00:00:03]} Kg2 {[%clk 00:02:24]} {[%emt 00:00:02]}
77. h4 {[%clk 00:03:50]} {[%emt 00:00:03]} Kg1 {[%clk 00:02:32]} {[%emt
00:00:03]} 78. h5 {[%clk 00:03:59]} Kg2 {[%clk 00:02:41]} {[%emt 00:00:01]} 79.
h6 {[%clk 00:04:09]} Kg1 {[%clk 00:02:50]} 80. h7 {[%clk 00:04:18]} {[%emt
00:00:02]} Kg2 {[%clk 00:02:59]} 81. h8=Q {[%clk 00:04:24]} {[%emt 00:00:03]}
Kg1 {[%clk 00:03:07]} {[%emt 00:00:02]} 82. Qhh2+ {[%clk 00:04:33]} {[%emt
00:00:01]} Kf1 {[%clk 00:03:16]} {[%emt 00:00:02]} 83. Qdf4+ {[%clk 00:04:42]}
{[%emt 00:00:01]} Ke1 {[%clk 00:03:23]} {[%emt 00:00:02]} 84. Qe3+ {[%clk
00:04:50]} {[%emt 00:00:02]} Kd1 {[%clk 00:03:32]} {[%emt 00:00:02]} 85. Qhd2#
{[%emt 00:00:05]} 1-0



[ePGN "0.1;DGT LiveChess/2.2.6"]

[Event "MČR družstev mladších žáků 2024"]
[Site "Harrachov, Czech Republic"]
[Date "2024.06.14"]
[Round "1.20"]
[White "Skoloud Natanael"]
[Black "Kala Jakub"]
[Result "0-1"]
[TimeControl "25+10"]
[WhiteFideId "23744120"]
[BlackFideId "23753897"]
[WhiteElo "1289"]
[BlackElo "1657"]

1. e4 {[%clk 00:25:16]} {[%emt 00:00:03]} c6 {[%clk 00:25:19]} {[%emt
00:00:02]} 2. d4 {[%clk 00:25:15]} {[%emt 00:00:11]} d5 {[%clk 00:25:27]}
{[%emt 00:00:02]} 3. exd5 {[%clk 00:24:58]} {[%emt 00:00:26]} cxd5 {[%clk
00:25:36]} {[%emt 00:00:02]} 4. Nf3 {[%clk 00:24:21]} {[%emt 00:00:47]} Nf6
{[%clk 00:25:41]} {[%emt 00:00:06]} 5. c4 {[%clk 00:23:06]} {[%emt 00:01:25]}
Bg4 {[%clk 00:24:15]} {[%emt 00:01:35]} 6. cxd5 {[%clk 00:18:38]} {[%emt
00:04:37]} Nxd5 {[%clk 00:23:38]} {[%emt 00:00:48]} 7. Be2 {[%clk 00:17:01]}
{[%emt 00:01:47]} Nc6 {[%clk 00:21:27]} {[%emt 00:02:21]} 8. O-O {[%clk
00:15:08]} {[%emt 00:02:03]} e6 {[%clk 00:20:32]} {[%emt 00:01:05]} 9. Nc3
{[%clk 00:13:45]} {[%emt 00:01:33]} Be7 {[%clk 00:18:38]} {[%emt 00:02:04]} 10.
Be3 {[%clk 00:12:30]} {[%emt 00:01:25]} O-O {[%clk 00:18:03]} {[%emt 00:00:45]}
11. Qb3 {[%clk 00:07:33]} {[%emt 00:05:07]} Na5 {[%clk 00:16:44]} {[%emt
00:01:26]} 12. Qd1 {[%clk 00:05:28]} {[%emt 00:02:18]} Rc8 {[%clk 00:15:15]}
{[%emt 00:01:38]} 13. Rc1 {[%clk 00:04:49]} {[%emt 00:00:50]} Nc4 {[%clk
00:13:41]} {[%emt 00:01:44]} 14. Nxd5 {[%clk 00:01:58]} {[%emt 00:03:01]} Qxd5
{[%clk 00:12:31]} {[%emt 00:01:20]} 15. Bxc4 {[%clk 00:01:16]} {[%emt
00:00:52]} Rxc4 {[%clk 00:12:36]} {[%emt 00:00:05]} 16. Rxc4 {[%clk 00:01:22]}
{[%emt 00:00:03]} Qxc4 {[%clk 00:12:39]} {[%emt 00:00:08]} 17. b3 {[%clk
00:01:10]} {[%emt 00:00:21]} Qd5 {[%clk 00:12:01]} {[%emt 00:00:49]} 18. Qe2
{[%clk 00:00:51]} {[%emt 00:00:29]} Rc8 {[%clk 00:10:03]} {[%emt 00:02:07]} 19.
h3 {[%clk 00:00:31]} {[%emt 00:00:31]} Bxf3 {[%clk 00:09:23]} {[%emt 00:00:50]}
20. Qxf3 {[%clk 00:00:36]} {[%emt 00:00:05]} Qxf3 {[%clk 00:08:43]} {[%emt
00:00:50]} 21. gxf3 {[%clk 00:00:44]} {[%emt 00:00:03]} Bf6 {[%clk 00:07:37]}
{[%emt 00:01:15]} 22. Rd1 {[%clk 00:00:37]} {[%emt 00:00:17]} Rc2 {[%clk
00:04:55]} {[%emt 00:02:52]} 23. a3 {[%clk 00:00:27]} {[%emt 00:00:20]} Rc3
{[%clk 00:04:04]} {[%emt 00:01:02]} 24. b4 {[%clk 00:00:11]} {[%emt 00:00:26]}
h6 {[%clk 00:03:00]} {[%emt 00:01:14]} 25. a4 {[%emt 00:00:04]} Rc4 {[%emt
00:00:52]} 0-1



[ePGN "0.1;DGT LiveChess/2.2.6"]